bitfinex-derivatives/quotes_BNBF0:USTF0_20260110
["timestamp","ask_amount","ask_price","bid_price","bid_amount"]
[1768085405642,0.19223492,905.32,904.6,0.68706775]
[1768085405844,0.19223492,905.32,904.61,0.68706775]
[1768085406047,0.19223492,905.32,904.62,0.68706775]
[1768085406247,0.19223492,905.32,904.51,2.189]
[1768085406444,0.19223492,905.32,904.52,0.68709792]
[1768085406649,0.19223492,905.32,904.53,0.68709792]
[1768085406845,0.19223492,905.32,904.54,0.68709792]
[1768085407048,0.19223492,905.32,904.55,0.68709792]
[1768085407248,0.19223492,905.32,904.56,0.68709792]
[1768085407446,0.19223492,905.32,904.57,0.68709792]
[1768085407645,0.19223492,905.32,904.58,0.68709792]
[1768085407848,0.19223492,905.32,904.59,0.68709792]
[1768085408050,0.19223492,905.32,904.6,0.68709792]
[1768085408351,0.19223492,905.32,904.61,0.68709792]
[1768085408550,0.19223492,905.32,904.51,2.189]
[1768085408551,0.19223492,905.32,904.62,0.68709792]
[1768085408850,0.19223492,905.32,904.51,2.189]
[1768085409051,0.19223492,905.32,904.52,0.68712411]
[1768085409245,0.19223492,905.32,904.53,0.68712411]
[1768085409449,0.19223492,905.32,904.54,0.68712411]
[1768085409650,0.19223492,905.32,904.55,0.68712411]
[1768085409848,0.19223492,905.32,904.56,0.68712411]
[1768085410053,0.19223492,905.32,904.51,2.189]
[1768085410054,0.19223492,905.32,904.57,0.68712411]
[1768085410349,0.19223492,905.32,904.58,0.68712411]
[1768085410553,0.19223492,905.32,904.59,0.68712411]
[1768085410753,0.19223492,905.32,904.6,0.68712411]
[1768085411053,0.19223492,905.32,904.61,0.68712411]
[1768085411254,0.19223492,905.32,904.51,2.189]
[1768085411454,0.19223492,905.32,904.52,0.68722016]
[1768085411652,0.19223492,905.32,904.53,0.68722016]
[1768085411856,0.19223492,905.32,904.54,0.68722016]
[1768085412055,0.19223492,905.32,904.55,0.68722016]
[1768085412254,0.19223492,905.32,904.56,0.68722016]
[1768085412461,0.19223492,905.32,904.57,0.68722016]
[1768085412660,0.19223492,905.32,904.58,0.68722016]
[1768085412855,0.19223492,905.32,904.59,0.68722016]
[1768085413156,0.19223492,905.32,904.6,0.68722016]
[1768085413356,0.19223492,905.32,904.61,0.68722016]
[1768085413554,0.19223492,905.32,904.62,0.68722016]
[1768085413856,0.19223492,905.32,904.63,0.68722016]
[1768085414156,0.19223492,905.32,904.51,2.189]
[1768085414360,0.19223492,905.32,904.52,0.68731365]
[1768085414558,0.19223492,905.32,904.53,0.68731365]
[1768085414761,0.19223492,905.32,904.54,0.68731365]
[1768085414958,0.19223492,905.32,904.55,0.68731365]
[1768085415162,0.19223492,905.32,904.56,0.68731365]
[1768085415463,0.19223492,905.32,904.57,0.68731365]
[1768085415664,0.19223492,905.32,904.58,0.68731365]
[1768085415858,0.19223492,905.32,904.59,0.68731365]
[1768085416060,0.19223492,905.32,904.6,0.68731365]
[1768085416261,0.19223492,905.32,904.61,0.68731365]
[1768085416463,0.19223492,905.32,904.62,0.68731365]
[1768085416759,0.19223492,905.32,904.63,0.68731365]
[1768085416959,0.19223492,905.32,904.51,2.189]
[1768085417163,0.19223492,905.32,904.52,0.68729866]
[1768085417364,0.19223492,905.32,904.53,0.68729866]
[1768085417564,0.19223492,905.32,904.54,0.68729866]
[1768085417864,0.19223492,905.32,904.55,0.68729866]
[1768085418061,0.19223492,905.32,904.56,0.68729866]
[1768085418265,0.19223492,905.32,904.57,0.68729866]
[1768085418462,0.19223492,905.32,904.58,0.68729866]
[1768085418762,0.19223492,905.32,904.59,0.68729866]
[1768085418961,0.19223492,905.32,904.6,0.68729866]
[1768085419264,0.19223492,905.32,904.61,0.68729866]
[1768085419461,0.19223492,905.32,904.62,0.68729866]
[1768085419666,0.19223492,905.32,904.63,0.68729866]
[1768085419867,0.19223492,905.32,904.51,2.189]
[1768085420062,0.19223492,905.32,904.52,0.68728967]
[1768085420267,0.19223492,905.32,904.53,0.68728967]
[1768085420463,0.19223492,905.32,904.54,0.68728967]
[1768085420667,0.19223492,905.32,904.55,0.68728967]
[1768085420866,0.19223492,905.32,904.56,0.68728967]
[1768085421064,0.19223492,905.32,904.57,0.68728967]
[1768085421363,0.19223492,905.32,904.58,0.68728967]
[1768085421566,0.19223492,905.32,904.59,0.68728967]
[1768085421764,0.19223492,905.32,904.6,0.68728967]
[1768085421965,0.19223492,905.32,904.61,0.68728967]
[1768085422270,0.19223492,905.32,904.62,0.68728967]
[1768085422568,0.19223492,905.32,904.63,0.68728967]
[1768085422768,0.19223492,905.32,904.51,2.189]
[1768085422966,0.19223492,905.32,904.52,0.68728861]
[1768085423170,0.19223492,905.32,904.53,0.68728861]
[1768085423368,0.19223492,905.32,904.54,0.68728861]
[1768085423668,0.19223492,905.32,904.55,0.68728861]
[1768085423867,0.19223492,905.32,904.56,0.68728861]
[1768085424065,0.19223492,905.32,904.57,0.68728861]
[1768085424267,0.19223492,905.32,904.58,0.68728861]
[1768085424464,0.19223492,905.32,904.59,0.68728861]
[1768085424667,0.19223492,905.32,904.6,0.68728861]
[1768085424864,0.19223492,905.32,904.61,0.68728861]
[1768085425068,0.19223492,905.32,904.62,0.68728861]
[1768085425366,0.19223492,905.32,904.63,0.68728861]
[1768085425569,0.19223492,905.32,904.51,2.189]
[1768085425765,0.19223492,905.32,904.52,0.68729528]
[1768085426068,0.19223492,905.32,904.53,0.68729528]
[1768085426265,0.19223492,905.32,904.54,0.68729528]
[1768085426468,0.19223492,905.32,904.55,0.68729528]
[1768085426669,0.19223492,905.32,904.56,0.68729528]
[1768085426970,0.19223492,905.32,904.57,0.68729528]
[1768085427172,0.19223492,905.32,904.58,0.68729528]
[1768085427376,0.19223492,905.32,904.59,0.68729528]
[1768085427566,0.19223492,905.32,904.6,0.68729528]
[1768085427770,0.19223492,905.32,904.61,0.68729528]
[1768085427968,0.19223492,905.32,904.62,0.68729528]
[1768085428170,0.19223492,905.32,904.63,0.68729528]
[1768085428368,0.19223492,905.32,904.37,7.29311089]
[1768085428568,0.19223492,905.32,904.38,0.68667336]
[1768085428771,0.19223492,905.32,904.39,0.68667336]
[1768085429070,0.19223492,905.32,904.4,0.68667336]
[1768085429268,0.19223492,905.32,904.41,0.68667336]
[1768085429471,0.19223492,905.32,904.42,0.68667336]
[1768085429672,0.19223492,905.32,904.43,0.68667336]
[1768085429872,0.19223492,905.32,904.44,0.68667336]
[1768085430170,0.19223492,905.32,904.45,0.68667336]
[1768085430372,0.19223492,905.32,904.46,0.68667336]
[1768085430571,0.19223492,905.32,904.47,0.68667336]
[1768085430769,0.19223492,905.32,904.48,0.68667336]
[1768085430969,0.19223492,905.32,904.49,0.68667336]
[1768085431171,0.19223492,905.32,904.5,0.68667336]
[1768085431468,0.19223492,905.32,904.51,0.68667336]
[1768085431672,0.19223492,905.32,904.52,0.68667336]
[1768085431969,0.19223492,905.32,904.53,0.68667336]
[1768085432167,0.19223492,905.32,904.54,0.68667336]
[1768085432368,0.19223492,905.32,904.55,0.68667336]
[1768085432571,0.19223492,905.32,904.56,0.68667336]
[1768085432769,0.19223492,905.32,904.57,0.68667336]
[1768085432970,0.19223492,905.32,904.58,0.68667336]
[1768085433170,0.19223492,905.32,904.59,0.68667336]
[1768085433469,0.19223492,905.32,904.6,0.68667336]
[1768085433670,0.19223492,905.32,904.61,0.68667336]
[1768085433872,0.19223492,905.32,904.62,0.68667336]
[1768085434070,0.19223492,905.32,904.45,1.512]
[1768085434368,0.19223492,905.32,904.46,0.68670824]
[1768085434568,0.19223492,905.32,904.47,0.68670824]
[1768085434772,0.19223492,905.32,904.48,0.68670824]
[1768085435073,0.19223492,905.32,904.49,0.68670824]
[1768085435270,0.19223492,905.32,904.5,0.68670824]
[1768085435474,0.19223492,905.32,904.51,0.68670824]
[1768085435671,0.19223492,905.32,904.52,0.68670824]
[1768085435974,0.19223492,905.32,904.53,0.68670824]
[1768085436171,0.19223492,905.32,904.54,0.68670824]
[1768085436372,0.19223492,905.32,904.55,0.68670824]
[1768085436574,0.19223492,905.32,904.56,0.68670824]
[1768085436871,0.19223492,905.32,904.57,0.68670824]
[1768085437074,0.19223492,905.32,904.58,0.68670824]
[1768085437275,0.19223492,905.32,904.59,0.68670824]
[1768085437475,0.19223492,905.32,904.6,0.68670824]
[1768085437772,0.19223492,905.32,904.61,0.68670824]
[1768085437974,0.19223492,905.32,904.62,0.68670824]
[1768085438175,0.19223492,905.32,904.63,0.68670824]
[1768085438371,0.19223492,905.32,904.64,0.68670824]
[1768085438675,0.19223492,905.32,904.65,0.68670824]
[1768085438875,0.19223492,905.32,904.66,0.68670824]
[1768085439074,0.19223492,905.32,904.67,0.68670824]
[1768085439276,0.19223492,905.32,904.68,0.68670824]
[1768085439477,0.19223492,905.32,904.45,1.512]
[1768085439675,0.19223492,905.32,904.46,0.68666029]
[1768085439874,0.19223492,905.32,904.47,0.68666029]
[1768085440173,0.19223492,905.32,904.48,0.68666029]
[1768085440377,0.19223492,905.32,904.49,0.68666029]
[1768085440575,0.19223492,905.32,904.5,0.68666029]
[1768085440775,0.19223492,905.32,904.51,0.68666029]
[1768085440974,0.19223492,905.32,904.52,0.68666029]
[1768085441172,0.19223492,905.32,904.53,0.68666029]
[1768085441374,0.19223492,905.32,904.54,0.68666029]
[1768085441575,0.19223492,905.32,904.55,0.68666029]
[1768085441778,0.19223492,905.32,904.56,0.68666029]
[1768085441977,0.19223492,905.32,904.57,0.68666029]
[1768085442276,0.19223492,905.32,904.58,0.68666029]
[1768085442477,0.19223492,905.32,904.59,0.68666029]
[1768085442680,0.19223492,905.32,904.6,0.68666029]
[1768085442876,0.19223492,905.32,904.61,0.68666029]
[1768085443078,0.19223492,905.32,904.62,0.68666029]
[1768085443276,0.19223492,905.32,904.63,0.68666029]
[1768085443478,0.19223492,905.32,904.64,0.68666029]
[1768085443680,0.19223492,905.32,904.65,0.68666029]
[1768085443877,0.19223492,905.32,904.66,0.68666029]
[1768085444078,0.19223492,905.32,904.67,0.68666029]
[1768085444379,0.19223492,905.32,904.68,0.68666029]
[1768085444582,0.19223492,905.32,904.69,0.68666029]
[1768085444781,0.19223492,905.32,904.7,0.68666029]
[1768085445078,0.19223492,905.32,904.71,0.68666029]
[1768085445282,0.19223492,905.32,904.45,1.512]
[1768085445283,0.19223492,905.32,904.72,0.68666029]
[1768085445484,0.19223492,905.32,904.73,0.68666029]
[1768085445684,0.19223492,905.32,904.74,0.68666029]
[1768085445983,0.19223492,905.32,904.75,0.68666029]
[1768085446179,0.19223492,905.32,904.76,0.68666029]
[1768085446377,0.19223492,905.32,904.77,0.68666029]
[1768085446582,0.19223492,905.32,904.78,0.68666029]
[1768085446782,0.19223492,905.32,904.79,0.68666029]
[1768085446980,0.19223492,905.32,904.8,0.68666029]
[1768085447180,0.19223492,905.32,904.53,0.82987302]
[1768085447181,0.19223492,905.32,904.81,0.68666029]
[1768085447382,0.19223492,905.32,904.52,0.82987302]
[1768085447585,0.19223492,905.32,904.53,0.6851878]
[1768085447781,0.19223492,905.32,904.54,0.6851878]
[1768085447980,0.19223492,905.32,904.55,0.6851878]
[1768085448184,0.19223492,905.32,904.56,0.6851878]
[1768085448384,0.19223492,905.32,904.57,0.6851878]
[1768085448684,0.19223492,905.32,904.58,0.6851878]
[1768085448880,0.19223492,905.32,904.59,0.6851878]
[1768085449085,0.19223492,905.32,904.6,0.6851878]
[1768085449282,0.19223492,905.32,904.61,0.6851878]
[1768085449584,0.19223492,905.32,904.62,0.6851878]
[1768085449785,0.19223492,905.32,904.63,0.6851878]
[1768085449985,0.19223492,905.32,904.64,0.6851878]
[1768085450187,0.19223492,905.32,904.65,0.6851878]
[1768085450385,0.19223492,905.32,904.66,0.6851878]
[1768085450587,0.19223492,905.32,904.67,0.6851878]
[1768085450784,0.19223492,905.32,904.68,0.6851878]
[1768085450984,0.19223492,905.32,904.69,0.6851878]
[1768085451193,0.19223492,905.32,904.7,0.6851878]
[1768085451386,0.19223492,905.32,904.71,0.6851878]
[1768085451587,0.19223492,905.32,904.72,0.6851878]
[1768085451788,0.19223492,905.32,904.73,0.6851878]
[1768085451992,0.19223492,905.32,904.74,0.6851878]
[1768085452289,0.19223492,905.32,904.75,0.6851878]
[1768085452488,0.19223492,905.32,904.76,0.6851878]
[1768085452693,0.19223492,905.32,904.77,0.6851878]
[1768085452893,0.19223492,905.32,904.48,0.82987302]
[1768085453093,0.19223492,905.32,904.49,0.68447358]
[1768085453290,0.19223492,905.32,904.5,0.68447358]
[1768085453490,0.19223492,905.32,904.51,0.68447358]
[1768085453694,0.19223492,905.32,904.52,0.68447358]
[1768085453991,0.19223492,905.32,904.53,0.68447358]
[1768085454294,0.19223492,905.32,904.54,0.68447358]
[1768085454494,0.19223492,905.32,904.55,0.68447358]
[1768085454691,0.19223492,905.32,904.56,0.68447358]
[1768085454896,0.19223492,905.32,904.57,0.68447358]
[1768085455090,0.19223492,905.32,904.58,0.68447358]
[1768085455291,0.19223492,905.32,904.59,0.68447358]
[1768085455595,0.19223492,905.32,904.6,0.68447358]
[1768085455895,0.19223492,905.32,904.61,0.68447358]
[1768085456091,0.19223492,905.32,904.62,0.68447358]
[1768085456292,0.19223492,905.32,904.63,0.68447358]
[1768085456490,0.19223492,905.32,904.64,0.68447358]
[1768085456690,0.19223492,905.32,904.65,0.68447358]
[1768085456889,0.19223492,905.32,904.66,0.68447358]
[1768085457091,0.19223492,905.32,904.67,0.68447358]
[1768085457291,0.19223492,905.32,904.68,0.68447358]
[1768085457595,0.19223492,905.32,904.69,0.68447358]
[1768085457796,0.19223492,905.32,904.7,0.68447358]
[1768085458097,0.19223492,905.32,904.71,0.68447358]
[1768085458292,0.19223492,905.32,904.72,0.68447358]
[1768085458497,0.19223492,905.32,904.73,0.68447358]
[1768085458792,0.19223492,905.32,904.74,0.68447358]
[1768085458996,0.19223492,905.32,904.75,0.68447358]
[1768085459193,0.19223492,905.32,904.76,0.68447358]
[1768085459394,0.19223492,905.32,904.47,0.82987302]
[1768085459696,0.19223492,905.32,904.48,0.68377968]
[1768085459898,0.19223492,905.32,904.49,0.68377968]
[1768085460093,0.19223492,905.32,904.5,0.68377968]
[1768085460294,0.19223492,905.32,904.51,0.68377968]
[1768085460593,0.19223492,905.32,904.52,0.68377968]
[1768085460797,0.19223492,905.32,904.53,0.68377968]
[1768085460995,0.19223492,905.32,904.54,0.68377968]
[1768085461193,0.19223492,905.32,904.55,0.68377968]
[1768085461397,0.19223492,905.32,904.56,0.68377968]
[1768085461593,0.19223492,905.32,904.57,0.68377968]
[1768085461798,0.19223492,905.32,904.58,0.68377968]
[1768085462095,0.19223492,905.32,904.59,0.68377968]
[1768085462299,0.19223492,905.32,904.6,0.68377968]
[1768085462495,0.19223492,905.32,904.61,0.68377968]
[1768085462699,0.19223492,905.32,904.62,0.68377968]
[1768085462995,0.19223492,905.32,904.63,0.68377968]
[1768085463200,0.19223492,905.32,904.64,0.68377968]
[1768085463400,0.19223492,905.32,904.65,0.68377968]
[1768085463601,0.19223492,905.32,904.66,0.68377968]
[1768085463897,0.19223492,905.32,904.67,0.68377968]
[1768085464100,0.19223492,905.32,904.68,0.68377968]
[1768085464297,0.19223492,905.32,904.69,0.68377968]
[1768085464498,0.19223492,905.32,904.7,0.68377968]
[1768085464695,0.19223492,905.32,904.71,0.68377968]
[1768085464898,0.19223492,905.32,904.72,0.68377968]
[1768085465100,0.19223492,905.32,904.73,0.68377968]
[1768085465299,0.19223492,905.32,904.74,0.68377968]
[1768085465597,0.19223492,905.32,904.75,0.68377968]
[1768085465800,0.19223492,905.32,904.76,0.68377968]
[1768085465996,0.19223492,905.32,904.76,2.245]
[1768085473408,0.19223492,905.32,904.77,0.68373054]
[1768085473608,0.19223492,905.32,904.76,2.245]
[1768085473804,0.19223492,905.32,904.77,0.68373054]
[1768085474009,0.19223492,905.32,904.76,2.245]
[1768085474304,0.19223492,905.32,904.77,0.68373054]
[1768085474509,0.19223492,905.32,904.76,2.245]
[1768085474706,0.19223492,905.32,904.77,0.6837866]
[1768085475009,0.19223492,905.32,904.76,2.245]
[1768085475205,0.19223492,905.32,904.77,0.6837866]
[1768085475506,0.19223492,905.32,904.76,2.245]
[1768085475709,0.19223492,905.32,904.77,0.68385116]
[1768085475909,0.19223492,905.32,904.76,2.245]
[1768085476106,0.19223492,905.32,904.77,0.68385116]
[1768085476308,0.19223492,905.32,904.76,2.245]
[1768085476507,0.19223492,905.32,904.77,0.68393807]
[1768085476709,0.19223492,905.32,904.76,2.245]
[1768085488516,0.19223492,905.32,904.77,0.68488044]
[1768085488716,0.19223492,905.32,904.76,2.245]
[1768085488917,0.19223492,905.32,904.77,0.6848804]
[1768085489214,0.19223492,905.32,904.76,2.245]
[1768085489417,0.19223492,905.32,904.77,0.68487412]
[1768085489714,0.19223492,905.32,904.78,0.68487412]
[1768085489918,0.19223492,905.32,904.76,2.245]
[1768085490215,0.19223492,905.32,904.77,0.68498544]
[1768085490418,0.19223492,905.32,904.76,2.245]
[1768085490618,0.19223492,905.32,904.77,0.68497242]
[1768085490819,0.19223492,905.32,904.76,2.245]
[1768085491020,0.19223492,905.32,904.77,0.68497242]
[1768085491318,0.19223492,905.32,904.76,2.245]
[1768085491519,0.19223492,905.32,904.77,0.68495881]
[1768085491826,0.19223492,905.32,904.76,2.245]
[1768085492017,0.19223492,905.32,904.77,0.6849587]
[1768085492216,0.19223492,905.32,904.76,2.245]
[1768085492420,0.19223492,905.32,904.77,0.68495113]
[1768085492618,0.19223492,905.32,904.76,2.245]
[1768085492921,0.19223492,905.32,904.77,0.68494684]
[1768085493121,0.19223492,905.32,904.76,2.245]
[1768085493318,0.19223492,905.32,904.77,0.68494688]
[1768085493621,0.19223492,905.32,904.76,2.245]
[1768085493821,0.19223492,905.32,904.77,0.68493709]
[1768085494022,0.19223492,905.32,904.76,2.245]
[1768085500824,2.73162362,906.24,904.76,2.245]
[1768085501028,0.19223599,905.19,904.76,2.245]
[1768085501430,2.73162362,906.23,904.76,2.245]
[1768085501627,0.19223652,905.19,904.76,2.245]
[1768085501829,2.73162362,906.24,904.76,2.245]
[1768085502132,0.19223599,905.19,904.76,2.245]
[1768085502430,2.73162362,906.24,904.76,2.245]
[1768085502630,0.19223599,905.19,904.76,2.245]
[1768085503033,2.73162362,906.24,904.76,2.245]
[1768085503229,0.19223811,905.19,904.76,2.245]
[1768085503532,2.73162362,906.24,904.76,2.245]
[1768085503733,0.19224023,905.15,904.76,2.245]
[1768085504029,2.73162362,906.24,904.76,2.245]
[1768085504234,0.19224023,905.15,904.76,2.245]
[1768085504536,2.73162362,906.24,904.76,2.245]
[1768085504830,0.19224023,905.15,904.76,2.245]
[1768085505135,2.73162362,906.24,904.76,2.245]
[1768085505331,0.19224023,905.15,904.76,2.245]
[1768085505531,2.73162362,906.24,904.76,2.245]
[1768085505732,2.73162362,906.23,904.76,2.245]
[1768085505931,0.19224023,905.15,904.76,2.245]
[1768085506131,2.73162362,906.2,904.4,7.79370265]
[1768085506331,0.19224076,905.15,904.41,0.6841879]
[1768085506533,0.19224076,905.15,904.42,0.6841879]
[1768085506733,2.73162362,906.19,904.43,0.6841879]
[1768085506935,0.19226572,905.1,904.44,0.6841879]
[1768085507132,2.73162362,906.17,904.45,0.6841879]
[1768085507331,2.73162362,906.17,904.46,0.6841879]
[1768085507536,0.19226519,905.1,904.47,0.6841879]
[1768085507837,2.73162362,906.18,904.48,0.6841879]
[1768085508033,0.19226466,905.1,904.49,0.6841879]
[1768085508233,2.73162362,906.18,904.5,0.6841879]
[1768085508433,0.19226307,905.1,904.51,0.6841879]
[1768085508634,2.73162362,906.18,904.52,0.6841879]
[1768085508833,2.73162362,906.18,904.53,0.6841879]
[1768085509035,0.19226201,905.1,904.54,0.6841879]
[1768085509236,2.73162362,906.18,904.55,0.6841879]
[1768085509437,0.19226041,905.1,904.56,0.6841879]
[1768085509635,0.19226041,905.1,904.57,0.6841879]
[1768085509836,2.73162362,906.18,904.53,2.023]
[1768085510041,0.19225882,905.1,904.54,0.68404665]
[1768085510335,2.73162362,906.18,904.55,0.68404665]
[1768085510542,0.19226041,905.1,904.56,0.68404665]
[1768085510742,2.73162362,906.18,904.57,0.68404665]
[1768085510941,2.73162362,906.18,904.53,2.023]
[1768085511142,0.19225935,905.1,904.54,0.68401338]
[1768085511340,2.73162362,906.18,904.55,0.68401338]
[1768085511540,0.19226041,905.1,904.56,0.68401338]
[1768085511843,2.73162362,906.18,904.57,0.68401338]
[1768085512142,0.19225935,905.1,904.53,2.023]
[1768085512344,2.73162362,906.18,904.54,0.68395551]
[1768085512544,0.19226094,905.1,904.55,0.68395551]
[1768085512741,0.19226094,905.1,904.56,0.68395551]
[1768085513045,2.73162362,906.18,904.57,0.68395551]
[1768085513246,0.19225935,905.1,904.53,2.023]
[1768085513449,2.73162362,906.18,904.54,0.68396322]
[1768085513745,0.19226094,905.1,904.55,0.68396322]
[1768085513943,2.73162362,906.18,904.56,0.68396322]
[1768085514247,0.19225988,905.1,904.57,0.68396322]
[1768085514543,2.73162362,906.18,904.53,2.023]
[1768085514750,0.19225882,905.1,904.54,0.68396232]
[1768085515044,2.73162362,906.18,904.55,0.68396232]
[1768085515243,0.19226041,905.1,904.56,0.68396232]
[1768085515443,0.19226041,905.1,904.57,0.68396232]
[1768085515649,2.73162362,906.19,904.53,2.023]
[1768085515948,0.19225882,905.1,904.54,0.68413299]
[1768085516144,2.73162362,906.17,904.55,0.68413299]
[1768085516447,0.19226041,905.78,904.56,0.68413299]
[1768085516644,0.19226041,905.78,904.57,0.68413299]
[1768085516843,0.19226041,905.78,904.53,2.023]
[1768085517049,0.19226041,905.78,904.54,0.68411935]
[1768085517249,0.19226041,905.78,904.55,0.68411935]
[1768085517545,0.19226041,905.78,904.53,2.023]
[1768085517546,0.19226041,905.78,904.56,0.68411935]
[1768085517746,0.19226041,905.78,904.57,0.68411935]
[1768085517950,0.19226041,905.78,904.53,2.023]
[1768085518150,0.19226041,905.78,904.54,0.68247492]
[1768085518351,0.19226041,905.78,904.55,0.68247492]
[1768085518552,0.19226041,905.78,904.56,0.68247492]
[1768085518750,0.19226041,905.78,904.53,2.023]
[1768085518950,0.19226041,905.78,904.54,0.68250511]
[1768085519150,0.19226041,905.78,904.55,0.68250511]
[1768085519350,0.19226041,905.78,904.56,0.68250511]
[1768085519549,0.19226041,905.78,904.53,2.023]
[1768085519850,0.19226041,905.78,904.54,0.6825446]
[1768085520050,0.19226041,905.78,904.55,0.6825446]
[1768085520252,0.19226041,905.78,904.56,0.6825446]
[1768085520549,0.19226041,905.78,904.53,2.023]
[1768085520750,0.19226041,905.78,904.54,0.68260137]
[1768085521052,0.19226041,905.78,904.53,2.023]
[1768085521250,0.19226041,905.78,904.54,0.68262384]
[1768085521453,0.19226041,905.78,904.53,2.023]
[1768085524854,0.19226041,905.78,904.54,0.68263952]
[1768085525054,0.19226041,905.78,904.53,2.023]
[1768085525258,0.19226041,905.78,904.54,0.68263012]
[1768085525454,0.19226041,905.78,904.55,0.68264509]
[1768085525654,0.19226041,905.78,904.53,2.023]
[1768085525860,0.19226041,905.78,904.54,0.68264509]
[1768085526159,0.19226041,905.78,904.55,0.68264509]
[1768085526457,0.19226041,905.78,904.53,2.023]
[1768085526662,0.19226041,905.78,904.54,0.6826562]
[1768085526857,0.19226041,905.78,904.55,0.6826562]
[1768085527059,0.19226041,905.78,904.53,2.023]
[1768085527256,0.19226041,905.78,904.54,0.68265123]
[1768085527555,0.19226041,905.78,904.55,0.68265123]
[1768085527759,0.19226041,905.78,904.56,0.68265123]
[1768085527955,0.19226041,905.78,904.53,2.023]
[1768085528156,0.19226041,905.78,904.54,0.68267298]
[1768085528355,0.19226041,905.78,904.55,0.68267298]
[1768085528658,0.19226041,905.78,904.56,0.68267298]
[1768085528861,0.19226041,905.78,904.53,2.023]
[1768085529062,0.19226041,905.78,904.54,0.68269557]
[1768085529258,0.19226041,905.78,904.55,0.68269557]
[1768085529562,0.19226041,905.78,904.56,0.68269557]
[1768085529857,0.19226041,905.78,904.53,2.023]
[1768085530058,0.19226041,905.78,904.54,0.6827242]
[1768085530358,0.19226041,905.78,904.55,0.6827242]
[1768085530562,0.19226041,905.78,904.56,0.6827242]
[1768085530861,0.19226041,905.78,904.53,2.023]
[1768085531161,0.19226041,905.78,904.54,0.68283544]
[1768085531356,0.19226041,905.78,904.55,0.68283544]
[1768085531555,0.19226041,905.78,904.56,0.68283544]
[1768085531757,0.19226041,905.78,904.53,2.023]
[1768085531958,0.19226041,905.78,904.54,0.68302963]
[1768085532159,0.19226041,905.78,904.55,0.68302963]
[1768085532360,0.19226041,905.78,904.56,0.68302963]
[1768085532558,0.19226041,905.78,904.57,0.68302963]
[1768085532760,0.19226041,905.78,904.53,2.023]
[1768085532958,0.19226041,905.78,904.54,0.68307909]
[1768085533161,0.19226041,905.78,904.55,0.68307909]
[1768085533357,0.19226041,905.78,904.56,0.68307909]
[1768085533558,0.19226041,905.78,904.57,0.68307909]
[1768085533756,0.19226041,905.78,904.53,2.023]
[1768085533959,0.19226041,905.78,904.54,0.68313698]
[1768085534259,0.19226041,905.78,904.55,0.68313698]
[1768085534457,0.19226041,905.78,904.56,0.68313698]
[1768085534658,0.19226041,905.78,904.57,0.68313698]
[1768085534858,0.19226041,905.78,904.53,2.023]
[1768085535060,0.19226041,905.78,904.54,0.68320453]
[1768085535357,0.19226041,905.78,904.55,0.68320453]
[1768085535562,0.19226041,905.78,904.53,2.023]
[1768085535761,0.19226041,905.78,904.54,0.68328345]
[1768085535956,0.19226041,905.78,904.55,0.68328345]
[1768085536159,0.19226041,905.78,904.53,2.023]
[1768085536364,0.19226041,905.78,904.54,0.68328785]
[1768085536559,0.19226041,905.78,904.55,0.68328785]
[1768085536758,0.19226041,905.78,904.53,2.023]
[1768085537063,0.19226041,905.78,904.54,0.68337612]
[1768085537265,0.19226041,905.78,904.55,0.68337612]
[1768085537460,0.19226041,905.78,904.56,0.68337612]
[1768085537660,0.19226041,905.78,904.53,2.023]
[1768085537963,0.19226041,905.78,904.54,0.68348651]
[1768085538263,0.19226041,905.78,904.55,0.68348651]
[1768085538465,0.19226041,905.78,904.56,0.68348651]
[1768085538663,0.19226041,905.78,904.57,0.68348651]
[1768085538960,0.19226041,905.78,904.53,2.023]
[1768085539160,0.19226041,905.78,904.54,0.68362164]
[1768085539364,0.19226041,905.78,904.55,0.68362164]
[1768085539562,0.19226041,905.78,904.56,0.68362164]
[1768085539766,0.19226041,905.78,904.57,0.68362164]
[1768085539965,0.19226041,905.78,904.53,2.023]
[1768085540266,0.19226041,905.78,904.54,0.68363862]
[1768085540565,0.19226041,905.78,904.55,0.68363862]
[1768085540764,0.19226041,905.78,904.56,0.68363862]
[1768085540966,0.19226041,905.78,904.57,0.68363862]
[1768085541163,0.19226041,905.78,904.53,2.023]
[1768085541368,0.19226041,905.78,904.54,0.68368149]
[1768085541667,0.19226041,905.78,904.55,0.68368149]
[1768085541866,0.19226041,905.78,904.56,0.68368149]
[1768085542066,0.19226041,905.78,904.57,0.68368149]
[1768085542262,0.19226041,905.78,904.53,2.023]
[1768085542567,0.19226041,905.78,904.54,0.68370788]
[1768085542763,0.19226041,905.78,904.55,0.68370788]
[1768085542968,0.19226041,905.78,904.56,0.68370788]
[1768085543264,0.19226041,905.78,904.57,0.68370788]
[1768085543567,0.19226041,905.78,904.53,2.023]
[1768085543769,0.19226041,905.78,904.54,0.68373806]
[1768085544067,0.19226041,905.78,904.55,0.68373806]